[Event "Titled Tuesday Blitz December 20 Early 2022"]
[White "emeli_chess"]
[Black "Coachpoker"]
[WhiteElo "2405"]
[BlackElo "2626"]
[Result "0-1"]
[Round "03"]
[TimeControl "180+2"]
[Date "2022.12.20"]
[WhiteClock "0:00:08"]
[BlackClock "0:01:08"]

1. d4 {[%clk 0:03:00]}  d5 {[%clk 0:02:54]} 2. c4 {[%clk 0:03:00]}  dxc4 {[%clk 0:02:55]} 3. Nf3 {[%clk 0:02:59]}  Nf6 {[%clk 0:02:55]} 4. e3 {[%clk 0:03:00]}  e6 {[%clk 0:02:55]} 5. Bxc4 {[%clk 0:03:00]}  a6 {[%clk 0:02:56]} 6. a4 {[%clk 0:02:59]}  c5 {[%clk 0:02:56]} 7. O-O {[%clk 0:02:58]}  Nc6 {[%clk 0:02:56]} 8. Qe2 {[%clk 0:02:58]}  cxd4 {[%clk 0:02:57]} 9. Rd1 {[%clk 0:02:57]}  Be7 {[%clk 0:02:58]} 10. exd4 {[%clk 0:02:57]}  O-O {[%clk 0:02:58]} 11. Nc3 {[%clk 0:02:57]}  Nb4 {[%clk 0:02:57]} 12. Ne5 {[%clk 0:02:49]}  Bd7 {[%clk 0:02:56]} 13. Bg5 {[%clk 0:02:31]}  Bc6 {[%clk 0:02:56]} 14. Nxc6 {[%clk 0:02:30]}  bxc6 {[%clk 0:02:57]} 15. Rd2 {[%clk 0:02:03]}  a5 {[%clk 0:02:57]} 16. Re1 {[%clk 0:02:01]}  Qc7 {[%clk 0:02:56]} 17. h4 {[%clk 0:01:12]}  Rad8 {[%clk 0:02:55]} 18. Ne4 {[%clk 0:01:11]}  Nxe4 {[%clk 0:02:52]} 19. Qxe4 {[%clk 0:01:11]}  h6 {[%clk 0:02:48]} 20. Bf4 {[%clk 0:01:01]}  Bd6 {[%clk 0:02:45]} 21. Be5 {[%clk 0:00:51]}  Bxe5 {[%clk 0:02:41]} 22. Qxe5 {[%clk 0:00:51]}  Qb6 {[%clk 0:02:31]} 23. Re3 {[%clk 0:00:46]}  Kh8 {[%clk 0:02:02]} 24. Rg3 {[%clk 0:00:45]}  Rg8 {[%clk 0:02:02]} 25. Rg4 {[%clk 0:00:40]}  Nd5 {[%clk 0:01:58]} 26. Rd3 {[%clk 0:00:30]}  Qxb2 {[%clk 0:01:47]} 27. Rdg3 {[%clk 0:00:29]}  Qc1+ {[%clk 0:01:45]} 28. Kh2 {[%clk 0:00:29]}  f6 {[%clk 0:01:15]} 29. Qh5 {[%clk 0:00:19]}  Qxc4 {[%clk 0:01:08]} 30. Rxg7 {[%clk 0:00:19]}  Rxg7 {[%clk 0:01:08]} 31. Qxh6+ {[%clk 0:00:08]}  Rh7 {[%clk 0:01:08]} 0-1


[Site "https://www.chess.com"]

[Event "Titled Tuesday Blitz December 20 Early 2022"]
[White "gisela_roque"]
[Black "harperchesstt"]
[WhiteElo "2096"]
[BlackElo "2366"]
[Result "0-1"]
[Round "03"]
[TimeControl "180+2"]
[Date "2022.12.20"]
[WhiteClock "0:01:18"]
[BlackClock "0:01:17"]

1. e4 {[%clk 0:03:00]}  c5 {[%clk 0:02:59]} 2. Nf3 {[%clk 0:02:59]}  d6 {[%clk 0:02:59]} 3. d4 {[%clk 0:03:00]}  cxd4 {[%clk 0:03:00]} 4. Nxd4 {[%clk 0:03:00]}  Nf6 {[%clk 0:03:01]} 5. Nc3 {[%clk 0:03:00]}  g6 {[%clk 0:03:01]} 6. Be3 {[%clk 0:02:58]}  Bg7 {[%clk 0:03:02]} 7. Bc4 {[%clk 0:02:54]}  O-O {[%clk 0:03:02]} 8. Bb3 {[%clk 0:02:54]}  Ng4 {[%clk 0:03:01]} 9. Bg5 {[%clk 0:02:50]}  h6 {[%clk 0:02:48]} 10. Bh4 {[%clk 0:02:48]}  Nc6 {[%clk 0:02:49]} 11. Nxc6 {[%clk 0:02:43]}  bxc6 {[%clk 0:02:49]} 12. O-O {[%clk 0:02:41]}  Ne5 {[%clk 0:02:30]} 13. Kh1 {[%clk 0:02:31]}  g5 {[%clk 0:02:07]} 14. Bg3 {[%clk 0:02:29]}  Ng6 {[%clk 0:02:07]} 15. Qh5 {[%clk 0:02:23]}  Kh7 {[%clk 0:01:50]} 16. f4 {[%clk 0:02:19]}  Nxf4 {[%clk 0:01:40]} 17. Bxf4 {[%clk 0:02:20]}  gxf4 {[%clk 0:01:40]} 18. Bxf7 {[%clk 0:02:14]}  e5 {[%clk 0:01:34]} 19. Rad1 {[%clk 0:02:06]}  Qf6 {[%clk 0:01:31]} 20. Bb3 {[%clk 0:01:54]}  Ba6 {[%clk 0:01:25]} 21. Rf3 {[%clk 0:01:51]}  Rad8 {[%clk 0:01:21]} 22. Re1 {[%clk 0:01:35]}  Qg5 {[%clk 0:01:18]} 23. Qh3 {[%clk 0:01:25]}  Rf6 {[%clk 0:01:17]} 24. Nd1 {[%clk 0:01:18]}  Bc8 {[%clk 0:01:17]} 0-1


[Site "https://www.chess.com"]

[Event "Titled Tuesday Blitz December 20 Early 2022"]
[White "lamomiajunior"]
[Black "Pastana, Rafael Pedroni"]
[BlackFideId "2140756"]
[WhiteElo "2526"]
[BlackElo "1978"]
[Result "1-0"]
[Round "03"]
[TimeControl "180+2"]
[Date "2022.12.20"]
[WhiteClock "0:00:30"]
[BlackClock "0:01:03"]

1. d4 {[%clk 0:03:00]}  Nf6 {[%clk 0:02:58]} 2. c4 {[%clk 0:03:01]}  e6 {[%clk 0:02:58]} 3. Nc3 {[%clk 0:03:01]}  Bb4 {[%clk 0:02:58]} 4. f3 {[%clk 0:03:02]}  O-O {[%clk 0:02:28]} 5. e4 {[%clk 0:03:01]}  c5 {[%clk 0:02:22]} 6. d5 {[%clk 0:02:55]}  d6 {[%clk 0:02:08]} 7. Bd3 {[%clk 0:02:45]}  Bxc3+ {[%clk 0:02:00]} 8. bxc3 {[%clk 0:02:45]}  b5 {[%clk 0:01:55]} 9. Bg5 {[%clk 0:02:34]}  bxc4 {[%clk 0:01:53]} 10. Bxc4 {[%clk 0:02:34]}  h6 {[%clk 0:01:53]} 11. Bh4 {[%clk 0:02:33]}  Ba6 {[%clk 0:01:44]} 12. Bxa6 {[%clk 0:02:32]}  Nxa6 {[%clk 0:01:45]} 13. dxe6 {[%clk 0:02:10]}  fxe6 {[%clk 0:01:44]} 14. Ne2 {[%clk 0:02:10]}  Nc7 {[%clk 0:01:37]} 15. O-O {[%clk 0:02:09]}  Qd7 {[%clk 0:01:33]} 16. Bxf6 {[%clk 0:01:58]}  Rxf6 {[%clk 0:01:32]} 17. e5 {[%clk 0:01:59]}  Rf5 {[%clk 0:01:32]} 18. Qxd6 {[%clk 0:01:53]}  Qxd6 {[%clk 0:01:31]} 19. exd6 {[%clk 0:01:54]}  Nb5 {[%clk 0:01:31]} 20. Ng3 {[%clk 0:01:45]}  Rf7 {[%clk 0:01:25]} 21. Ne4 {[%clk 0:01:44]}  Rd8 {[%clk 0:01:24]} 22. a4 {[%clk 0:01:33]}  Nxd6 {[%clk 0:01:22]} 23. Rfd1 {[%clk 0:01:33]}  Nb7 {[%clk 0:01:22]} 24. Rxd8+ {[%clk 0:01:33]}  Nxd8 {[%clk 0:01:23]} 25. Nxc5 {[%clk 0:01:33]}  Rc7 {[%clk 0:01:23]} 26. Ne4 {[%clk 0:01:27]}  Kf7 {[%clk 0:01:22]} 27. Rb1 {[%clk 0:01:26]}  Nc6 {[%clk 0:01:21]} 28. Rb5 {[%clk 0:01:07]}  Ne7 {[%clk 0:01:17]} 29. Kf2 {[%clk 0:01:03]}  Nd5 {[%clk 0:01:16]} 30. Ra5 {[%clk 0:00:54]}  Nxc3 {[%clk 0:01:13]} 31. Nxc3 {[%clk 0:00:53]}  Rxc3 {[%clk 0:01:14]} 32. Rxa7+ {[%clk 0:00:54]}  Kf6 {[%clk 0:01:15]} 33. Kg3 {[%clk 0:00:53]}  Rc2 {[%clk 0:01:14]} 34. h4 {[%clk 0:00:52]}  g5 {[%clk 0:01:06]} 35. h5 {[%clk 0:00:50]}  Rc4 {[%clk 0:01:05]} 36. a5 {[%clk 0:00:50]}  Rh4 {[%clk 0:01:04]} 37. Ra8 {[%clk 0:00:30]}  Rxh5 {[%clk 0:01:03]} 38. a6 {[%clk 0:00:30]}  g4 {[%clk 0:01:03]} 39. a7 {[%clk 0:00:30]} 1-0


[Site "https://www.chess.com"]

[Event "Titled Tuesday Blitz December 20 Early 2022"]
[White "newyorkmouse"]
[Black "Sokolov, Ivan"]
[BlackFideId "14400030"]
[WhiteElo "2457"]
[BlackElo "2590"]
[Result "1/2-1/2"]
[Round "03"]
[TimeControl "180+2"]
[Date "2022.12.20"]
[WhiteClock "0:00:36"]
[BlackClock "0:00:54"]

1. d4 {[%clk 0:03:00]}  d6 {[%clk 0:02:59]} 2. c4 {[%clk 0:02:59]}  e5 {[%clk 0:02:59]} 3. Nc3 {[%clk 0:02:59]}  exd4 {[%clk 0:02:57]} 4. Qxd4 {[%clk 0:03:00]}  Nc6 {[%clk 0:02:58]} 5. Qd2 {[%clk 0:03:00]}  g6 {[%clk 0:02:56]} 6. b3 {[%clk 0:03:00]}  Bg7 {[%clk 0:02:55]} 7. Bb2 {[%clk 0:03:00]}  Nf6 {[%clk 0:02:55]} 8. g3 {[%clk 0:02:59]}  O-O {[%clk 0:02:55]} 9. Bg2 {[%clk 0:02:59]}  Bf5 {[%clk 0:02:54]} 10. Nf3 {[%clk 0:02:59]}  Ne4 {[%clk 0:02:39]} 11. Nxe4 {[%clk 0:02:50]}  Bxe4 {[%clk 0:02:40]} 12. O-O {[%clk 0:02:45]}  Re8 {[%clk 0:02:36]} 13. Bxg7 {[%clk 0:02:27]}  Kxg7 {[%clk 0:02:37]} 14. Nd4 {[%clk 0:02:27]}  Bxg2 {[%clk 0:02:34]} 15. Kxg2 {[%clk 0:02:25]}  Nxd4 {[%clk 0:02:34]} 16. Qxd4+ {[%clk 0:02:25]}  Qf6 {[%clk 0:02:35]} 17. Qxf6+ {[%clk 0:02:24]}  Kxf6 {[%clk 0:02:36]} 18. Kf3 {[%clk 0:02:24]}  a5 {[%clk 0:02:35]} 19. a3 {[%clk 0:02:05]}  Re5 {[%clk 0:02:29]} 20. Rfd1 {[%clk 0:02:03]}  Rae8 {[%clk 0:02:13]} 21. e3 {[%clk 0:02:02]}  Rf5+ {[%clk 0:02:14]} 22. Ke2 {[%clk 0:02:01]}  h5 {[%clk 0:02:08]} 23. Rd4 {[%clk 0:01:47]}  b6 {[%clk 0:02:05]} 24. Rf4 {[%clk 0:01:36]}  Rxf4 {[%clk 0:02:05]} 25. gxf4 {[%clk 0:01:37]}  Kf5 {[%clk 0:02:00]} 26. Kf3 {[%clk 0:01:29]}  Ke6 {[%clk 0:01:55]} 27. Rd1 {[%clk 0:01:22]}  c6 {[%clk 0:01:56]} 28. e4 {[%clk 0:01:17]}  Rb8 {[%clk 0:01:53]} 29. Rd3 {[%clk 0:01:12]}  b5 {[%clk 0:01:53]} 30. cxb5 {[%clk 0:01:12]}  Rxb5 {[%clk 0:01:53]} 31. Ke3 {[%clk 0:01:09]}  Rc5 {[%clk 0:01:52]} 32. Kd2 {[%clk 0:01:03]}  a4 {[%clk 0:01:35]} 33. b4 {[%clk 0:00:39]}  Rc4 {[%clk 0:01:34]} 34. f3 {[%clk 0:00:40]}  f5 {[%clk 0:01:34]} 35. Rc3 {[%clk 0:00:36]}  Rd4+ {[%clk 0:01:24]} 36. Rd3 {[%clk 0:00:36]}  Rc4 {[%clk 0:00:54]} 37. Rc3 {[%clk 0:00:36]}  Rd4+ {[%clk 0:00:55]} 38. Rd3 {[%clk 0:00:36]}  Rc4 {[%clk 0:00:54]} 1/2-1/2


[Site "https://www.chess.com"]

[Event "Titled Tuesday Blitz December 20 Early 2022"]
[White "nikitakhoroshev"]
[Black "rasmussvane"]
[WhiteElo "2709"]
[BlackElo "2949"]
[Result "0-1"]
[Round "03"]
[TimeControl "180+2"]
[Date "2022.12.20"]
[WhiteClock "0:00:13"]
[BlackClock "0:00:12"]

1. d4 {[%clk 0:03:00]}  Nf6 {[%clk 0:02:59]} 2. c4 {[%clk 0:03:00]}  e6 {[%clk 0:02:59]} 3. Nf3 {[%clk 0:03:00]}  h6 {[%clk 0:02:59]} 4. Nc3 {[%clk 0:02:58]}  Bb4 {[%clk 0:02:59]} 5. Qb3 {[%clk 0:02:52]}  a5 {[%clk 0:02:45]} 6. Bd2 {[%clk 0:02:40]}  b6 {[%clk 0:02:40]} 7. e3 {[%clk 0:02:38]}  Bb7 {[%clk 0:02:40]} 8. Be2 {[%clk 0:02:38]}  O-O {[%clk 0:02:39]} 9. O-O {[%clk 0:02:37]}  d6 {[%clk 0:02:32]} 10. Qc2 {[%clk 0:02:27]}  Nbd7 {[%clk 0:02:29]} 11. Rfd1 {[%clk 0:02:26]}  Qe7 {[%clk 0:02:29]} 12. Nb5 {[%clk 0:02:20]}  Bxd2 {[%clk 0:02:21]} 13. Nxd2 {[%clk 0:02:17]}  c6 {[%clk 0:02:15]} 14. Nc3 {[%clk 0:02:16]}  c5 {[%clk 0:02:15]} 15. Bf3 {[%clk 0:02:13]}  d5 {[%clk 0:01:30]} 16. cxd5 {[%clk 0:01:57]}  exd5 {[%clk 0:01:31]} 17. Qf5 {[%clk 0:01:51]}  Qe6 {[%clk 0:01:27]} 18. Qxe6 {[%clk 0:01:25]}  fxe6 {[%clk 0:01:28]} 19. Rac1 {[%clk 0:01:24]}  Rfc8 {[%clk 0:01:10]} 20. Be2 {[%clk 0:01:11]}  e5 {[%clk 0:01:05]} 21. dxe5 {[%clk 0:01:06]}  Nxe5 {[%clk 0:01:06]} 22. Nf3 {[%clk 0:01:07]}  Nf7 {[%clk 0:01:02]} 23. Bb5 {[%clk 0:01:04]}  Nd6 {[%clk 0:00:59]} 24. Bf1 {[%clk 0:01:02]}  Rd8 {[%clk 0:00:59]} 25. Na4 {[%clk 0:00:59]}  Nd7 {[%clk 0:00:55]} 26. b3 {[%clk 0:00:55]}  Bc6 {[%clk 0:00:52]} 27. Nc3 {[%clk 0:00:54]}  Nf6 {[%clk 0:00:53]} 28. Ne5 {[%clk 0:00:54]}  Bb7 {[%clk 0:00:35]} 29. Na4 {[%clk 0:00:53]}  Nc8 {[%clk 0:00:36]} 30. Bb5 {[%clk 0:00:49]}  Ba6 {[%clk 0:00:24]} 31. Bxa6 {[%clk 0:00:39]}  Rxa6 {[%clk 0:00:25]} 32. Nc3 {[%clk 0:00:37]}  Ne7 {[%clk 0:00:23]} 33. Nb5 {[%clk 0:00:37]}  Raa8 {[%clk 0:00:22]} 34. f3 {[%clk 0:00:35]}  Rac8 {[%clk 0:00:22]} 35. Kf2 {[%clk 0:00:35]}  Nc6 {[%clk 0:00:22]} 36. Nxc6 {[%clk 0:00:33]}  Rxc6 {[%clk 0:00:23]} 37. Rd3 {[%clk 0:00:33]}  Kf7 {[%clk 0:00:23]} 38. Rcd1 {[%clk 0:00:32]}  Re8 {[%clk 0:00:21]} 39. h3 {[%clk 0:00:31]}  Re7 {[%clk 0:00:22]} 40. g4 {[%clk 0:00:31]}  g5 {[%clk 0:00:21]} 41. h4 {[%clk 0:00:29]}  Rce6 {[%clk 0:00:19]} 42. h5 {[%clk 0:00:27]}  d4 {[%clk 0:00:19]} 43. e4 {[%clk 0:00:20]}  Nd7 {[%clk 0:00:18]} 44. Nc7 {[%clk 0:00:20]}  Ne5 {[%clk 0:00:16]} 45. Nxe6 {[%clk 0:00:19]}  Nxd3+ {[%clk 0:00:16]} 46. Rxd3 {[%clk 0:00:19]}  Kxe6 {[%clk 0:00:17]} 47. Kg3 {[%clk 0:00:17]}  Ke5 {[%clk 0:00:17]} 48. a4 {[%clk 0:00:18]}  Rc7 {[%clk 0:00:18]} 49. Rd1 {[%clk 0:00:15]}  c4 {[%clk 0:00:13]} 50. bxc4 {[%clk 0:00:16]}  Rxc4 {[%clk 0:00:14]} 51. Rb1 {[%clk 0:00:17]}  Rb4 {[%clk 0:00:14]} 52. Rc1 {[%clk 0:00:15]}  d3 {[%clk 0:00:14]} 53. Kf2 {[%clk 0:00:14]}  Kf4 {[%clk 0:00:12]} 54. Rc6 {[%clk 0:00:13]}  Rb2+ {[%clk 0:00:12]} 55. Kf1 {[%clk 0:00:13]}  Ke3 {[%clk 0:00:10]} 56. e5 {[%clk 0:00:13]}  Rb1+ {[%clk 0:00:10]} 57. Kg2 {[%clk 0:00:13]}  d2 {[%clk 0:00:10]} 58. Rd6 {[%clk 0:00:12]}  d1=Q {[%clk 0:00:11]} 59. Rxd1 {[%clk 0:00:12]}  Rxd1 {[%clk 0:00:11]} 60. e6 {[%clk 0:00:13]}  Rd6 {[%clk 0:00:12]} 0-1


[Site "https://www.chess.com"]

[Event "Titled Tuesday Blitz December 20 Early 2022"]
[White "pheonixking2000"]
[Black "Klose, Eli"]
[BlackFideId "16242955"]
[WhiteElo "2806"]
[BlackElo "1519"]
[Result "1/2-1/2"]
[Round "03"]
[TimeControl "180+2"]
[Date "2022.12.20"]
[WhiteClock "0:00:06"]
[BlackClock "0:00:12"]

1. d4 {[%clk 0:02:59]}  Nf6 {[%clk 0:02:58]} 2. Bf4 {[%clk 0:03:00]}  c5 {[%clk 0:02:58]} 3. d5 {[%clk 0:02:58]}  b5 {[%clk 0:02:57]} 4. f3 {[%clk 0:02:56]}  d6 {[%clk 0:02:29]} 5. e4 {[%clk 0:02:55]}  a6 {[%clk 0:02:30]} 6. a4 {[%clk 0:02:53]}  b4 {[%clk 0:02:27]} 7. Nd2 {[%clk 0:02:53]}  g6 {[%clk 0:02:26]} 8. Nc4 {[%clk 0:02:52]}  Bg7 {[%clk 0:02:25]} 9. a5 {[%clk 0:02:51]}  O-O {[%clk 0:02:20]} 10. Bd3 {[%clk 0:02:51]}  Bd7 {[%clk 0:02:21]} 11. Ne2 {[%clk 0:02:51]}  Bb5 {[%clk 0:02:21]} 12. Nb6 {[%clk 0:02:50]}  Ra7 {[%clk 0:02:19]} 13. c4 {[%clk 0:02:49]}  bxc3 {[%clk 0:02:16]} 14. bxc3 {[%clk 0:02:49]}  Bxd3 {[%clk 0:02:15]} 15. Qxd3 {[%clk 0:02:49]}  Nbd7 {[%clk 0:02:10]} 16. Rb1 {[%clk 0:02:48]}  Nh5 {[%clk 0:02:08]} 17. Bd2 {[%clk 0:02:38]}  Ne5 {[%clk 0:01:45]} 18. Qc2 {[%clk 0:02:38]}  Rb7 {[%clk 0:01:44]} 19. O-O {[%clk 0:02:37]}  Nd7 {[%clk 0:01:45]} 20. Qd3 {[%clk 0:02:28]}  Nxb6 {[%clk 0:01:14]} 21. Qxa6 {[%clk 0:02:28]}  Qa8 {[%clk 0:01:13]} 22. Rxb6 {[%clk 0:02:14]}  Ra7 {[%clk 0:00:53]} 23. Qd3 {[%clk 0:02:14]}  Rxa5 {[%clk 0:00:53]} 24. g4 {[%clk 0:02:15]}  Nf6 {[%clk 0:00:52]} 25. Rc6 {[%clk 0:01:58]}  Nd7 {[%clk 0:00:45]} 26. f4 {[%clk 0:01:58]}  Qa7 {[%clk 0:00:38]} 27. Be3 {[%clk 0:01:49]}  Nb8 {[%clk 0:00:37]} 28. e5 {[%clk 0:01:23]}  Nxc6 {[%clk 0:00:36]} 29. dxc6 {[%clk 0:01:23]}  Qa6 {[%clk 0:00:36]} 30. c4 {[%clk 0:01:19]}  Qxc6 {[%clk 0:00:35]} 31. Nc3 {[%clk 0:01:20]}  dxe5 {[%clk 0:00:28]} 32. Nd5 {[%clk 0:01:19]}  Ra7 {[%clk 0:00:28]} 33. f5 {[%clk 0:01:15]}  e6 {[%clk 0:00:21]} 34. f6 {[%clk 0:01:15]}  exd5 {[%clk 0:00:20]} 35. fxg7 {[%clk 0:01:15]}  Kxg7 {[%clk 0:00:18]} 36. cxd5 {[%clk 0:01:16]}  Qd6 {[%clk 0:00:18]} 37. Qd2 {[%clk 0:00:26]}  Rd7 {[%clk 0:00:16]} 38. Bh6+ {[%clk 0:00:26]}  Kg8 {[%clk 0:00:17]} 39. Rd1 {[%clk 0:00:21]}  f6 {[%clk 0:00:14]} 40. Bxf8 {[%clk 0:00:19]}  Qxf8 {[%clk 0:00:15]} 41. d6 {[%clk 0:00:19]}  Qf7 {[%clk 0:00:15]} 42. h3 {[%clk 0:00:17]}  Qe6 {[%clk 0:00:15]} 43. Qb2 {[%clk 0:00:11]}  Kg7 {[%clk 0:00:15]} 44. Qb6 {[%clk 0:00:11]}  Qc4 {[%clk 0:00:14]} 45. Qc6 {[%clk 0:00:10]}  Qe6 {[%clk 0:00:14]} 46. Qxc5 {[%clk 0:00:10]}  h5 {[%clk 0:00:13]} 47. Qb4 {[%clk 0:00:08]}  hxg4 {[%clk 0:00:13]} 48. hxg4 {[%clk 0:00:09]}  e4 {[%clk 0:00:12]} 49. Rd2 {[%clk 0:00:06]}  Qxg4+ {[%clk 0:00:12]} 50. Rg2 {[%clk 0:00:07]}  Qd1+ {[%clk 0:00:12]} 51. Kf2 {[%clk 0:00:05]}  Qxd6 {[%clk 0:00:12]} 52. Qxe4 {[%clk 0:00:04]}  Qd4+ {[%clk 0:00:12]} 53. Qxd4 {[%clk 0:00:02]}  Rxd4 {[%clk 0:00:13]} 54. Ke3 {[%clk 0:00:03]}  Ra4 {[%clk 0:00:13]} 55. Rb2 {[%clk 0:00:03]}  g5 {[%clk 0:00:14]} 56. Rb8 {[%clk 0:00:03]}  Kg6 {[%clk 0:00:14]} 57. Kf3 {[%clk 0:00:04]}  Kf5 {[%clk 0:00:14]} 58. Rb5+ {[%clk 0:00:04]}  Kg6 {[%clk 0:00:15]} 59. Rb8 {[%clk 0:00:05]}  Ra3+ {[%clk 0:00:15]} 60. Ke4 {[%clk 0:00:06]}  Ra4+ {[%clk 0:00:12]} 61. Kf3 {[%clk 0:00:06]} 1/2-1/2


[Site "https://www.chess.com"]

[Event "Titled Tuesday Blitz December 20 Early 2022"]
[White "queen_iryna"]
[Black "Shironin, Daniil Aleks"]
[BlackFideId "55812198"]
[WhiteElo "2354"]
[BlackElo "2115"]
[Result "1-0"]
[Round "03"]
[TimeControl "180+2"]
[Date "2022.12.20"]
[WhiteClock "0:01:34"]
[BlackClock "0:01:19"]

1. e4 {[%clk 0:03:00]}  c5 {[%clk 0:02:56]} 2. Nf3 {[%clk 0:03:00]}  e6 {[%clk 0:02:53]} 3. c4 {[%clk 0:02:59]}  b6 {[%clk 0:02:52]} 4. Nc3 {[%clk 0:02:58]}  Bb7 {[%clk 0:02:52]} 5. Be2 {[%clk 0:02:56]}  Nf6 {[%clk 0:02:51]} 6. e5 {[%clk 0:02:55]}  Ng8 {[%clk 0:02:49]} 7. O-O {[%clk 0:02:54]}  d6 {[%clk 0:02:48]} 8. d4 {[%clk 0:02:51]}  cxd4 {[%clk 0:02:43]} 9. Qxd4 {[%clk 0:02:52]}  Nc6 {[%clk 0:02:42]} 10. Qe4 {[%clk 0:02:41]}  Na5 {[%clk 0:02:24]} 11. Qf4 {[%clk 0:02:35]}  Nh6 {[%clk 0:02:21]} 12. b3 {[%clk 0:02:12]}  Be7 {[%clk 0:01:59]} 13. Bb2 {[%clk 0:02:03]}  O-O {[%clk 0:01:57]} 14. Rad1 {[%clk 0:02:03]}  dxe5 {[%clk 0:01:55]} 15. Nxe5 {[%clk 0:01:53]}  Qc7 {[%clk 0:01:47]} 16. Nb5 {[%clk 0:01:52]}  Qb8 {[%clk 0:01:39]} 17. Qg3 {[%clk 0:01:44]}  Nf5 {[%clk 0:01:25]} 18. Qg4 {[%clk 0:01:43]}  Bf6 {[%clk 0:01:20]} 19. Nd7 {[%clk 0:01:40]}  Qd8 {[%clk 0:01:19]} 20. Bxf6 {[%clk 0:01:34]} 1-0


[Site "https://www.chess.com"]

[Event "Titled Tuesday Blitz December 20 Early 2022"]
[White "talaicito"]
[Black "Rosenberg, Sergei G"]
[BlackFideId "4102444"]
[WhiteElo "2293"]
[BlackElo "2418"]
[Result "1-0"]
[Round "03"]
[TimeControl "180+2"]
[Date "2022.12.20"]
[WhiteClock "0:00:14"]
[BlackClock "0:00:10"]

1. d4 {[%clk 0:03:00]}  d5 {[%clk 0:02:59]} 2. Bf4 {[%clk 0:02:56]}  c5 {[%clk 0:02:54]} 3. e3 {[%clk 0:02:53]}  Nc6 {[%clk 0:02:53]} 4. Nc3 {[%clk 0:02:53]}  cxd4 {[%clk 0:02:43]} 5. exd4 {[%clk 0:02:53]}  a6 {[%clk 0:02:43]} 6. Nf3 {[%clk 0:02:53]}  Bg4 {[%clk 0:02:38]} 7. Be2 {[%clk 0:02:44]}  Bxf3 {[%clk 0:02:37]} 8. Bxf3 {[%clk 0:02:44]}  e6 {[%clk 0:02:38]} 9. O-O {[%clk 0:02:42]}  Nf6 {[%clk 0:02:38]} 10. Re1 {[%clk 0:02:40]}  Be7 {[%clk 0:02:39]} 11. Ne2 {[%clk 0:02:37]}  O-O {[%clk 0:02:39]} 12. c3 {[%clk 0:02:37]}  b5 {[%clk 0:02:37]} 13. a3 {[%clk 0:02:27]}  a5 {[%clk 0:02:36]} 14. Ng3 {[%clk 0:02:28]}  b4 {[%clk 0:02:33]} 15. Qa4 {[%clk 0:02:21]}  Rc8 {[%clk 0:02:23]} 16. axb4 {[%clk 0:02:09]}  axb4 {[%clk 0:02:23]} 17. h4 {[%clk 0:02:08]}  bxc3 {[%clk 0:02:23]} 18. bxc3 {[%clk 0:02:07]}  Bd6 {[%clk 0:02:13]} 19. Be5 {[%clk 0:01:45]}  Bxe5 {[%clk 0:02:05]} 20. dxe5 {[%clk 0:01:46]}  Nd7 {[%clk 0:02:05]} 21. Qf4 {[%clk 0:01:27]}  Nc5 {[%clk 0:02:01]} 22. Rad1 {[%clk 0:01:15]}  Na5 {[%clk 0:01:44]} 23. Nh5 {[%clk 0:01:10]}  Kh8 {[%clk 0:01:23]} 24. Be2 {[%clk 0:00:40]}  Ne4 {[%clk 0:01:17]} 25. Bd3 {[%clk 0:00:35]}  g5 {[%clk 0:00:43]} 26. Qg4 {[%clk 0:00:19]}  Nxc3 {[%clk 0:00:33]} 27. Nf6 {[%clk 0:00:19]}  Rg8 {[%clk 0:00:28]} 28. Qh5 {[%clk 0:00:18]}  Rg7 {[%clk 0:00:28]} 29. Bxh7 {[%clk 0:00:18]}  Qxf6 {[%clk 0:00:27]} 30. exf6 {[%clk 0:00:17]}  Rxh7 {[%clk 0:00:27]} 31. Qxg5 {[%clk 0:00:16]}  Nxd1 {[%clk 0:00:27]} 32. Rxd1 {[%clk 0:00:16]}  Nc4 {[%clk 0:00:27]} 33. Rc1 {[%clk 0:00:15]}  Rg8 {[%clk 0:00:27]} 34. Qf4 {[%clk 0:00:14]}  e5 {[%clk 0:00:23]} 35. Qf5 {[%clk 0:00:13]}  Nd6 {[%clk 0:00:20]} 36. Qd7 {[%clk 0:00:13]}  Ne4 {[%clk 0:00:18]} 37. Qxd5 {[%clk 0:00:12]}  Nxf6 {[%clk 0:00:17]} 38. Qxe5 {[%clk 0:00:13]}  Rh6 {[%clk 0:00:18]} 39. Rc6 {[%clk 0:00:13]}  Rgg6 {[%clk 0:00:17]} 40. Rc8+ {[%clk 0:00:13]}  Kg7 {[%clk 0:00:17]} 41. h5 {[%clk 0:00:13]}  Rxh5 {[%clk 0:00:17]} 42. Qe7 {[%clk 0:00:13]}  Rhg5 {[%clk 0:00:12]} 43. Qf8+ {[%clk 0:00:13]}  Kh7 {[%clk 0:00:10]} 44. Qh8# {[%clk 0:00:14]} 1-0


[Site "https://www.chess.com"]

[Event "Titled Tuesday Blitz December 20 Early 2022"]
[White "temiksmozg"]
[Black "Rostolis, Riccardo"]
[BlackFideId "819948"]
[WhiteElo "2549"]
[BlackElo "1968"]
[Result "0-1"]
[Round "03"]
[TimeControl "180+2"]
[Date "2022.12.20"]
[WhiteClock "0:00:01"]
[BlackClock "0:00:27"]

1. e4 {[%clk 0:03:00]}  Nf6 {[%clk 0:02:59]} 2. e5 {[%clk 0:02:48]}  Nd5 {[%clk 0:02:58]} 3. c4 {[%clk 0:02:45]}  Nb6 {[%clk 0:02:58]} 4. a4 {[%clk 0:02:45]}  d6 {[%clk 0:02:58]} 5. a5 {[%clk 0:02:44]}  N6d7 {[%clk 0:02:57]} 6. e6 {[%clk 0:02:45]}  fxe6 {[%clk 0:02:58]} 7. d4 {[%clk 0:02:45]}  Nf6 {[%clk 0:02:57]} 8. Bd3 {[%clk 0:02:44]}  Nc6 {[%clk 0:02:51]} 9. Be3 {[%clk 0:02:36]}  e5 {[%clk 0:02:49]} 10. d5 {[%clk 0:02:34]}  Nb8 {[%clk 0:02:37]} 11. h3 {[%clk 0:02:22]}  e6 {[%clk 0:02:22]} 12. Nc3 {[%clk 0:02:17]}  Na6 {[%clk 0:02:05]} 13. g4 {[%clk 0:02:09]}  g6 {[%clk 0:01:56]} 14. Qc2 {[%clk 0:02:00]}  Qe7 {[%clk 0:01:50]} 15. Nf3 {[%clk 0:01:58]}  Bg7 {[%clk 0:01:37]} 16. O-O-O {[%clk 0:01:53]}  Bd7 {[%clk 0:01:34]} 17. Na2 {[%clk 0:01:26]}  c6 {[%clk 0:01:05]} 18. dxc6 {[%clk 0:01:21]}  Bxc6 {[%clk 0:01:03]} 19. Be2 {[%clk 0:01:03]}  O-O {[%clk 0:01:02]} 20. Rhg1 {[%clk 0:00:51]}  Rac8 {[%clk 0:00:45]} 21. Kb1 {[%clk 0:00:50]}  Be4 {[%clk 0:00:44]} 22. Rd3 {[%clk 0:00:50]}  Bxd3 {[%clk 0:00:43]} 23. Bxd3 {[%clk 0:00:50]}  d5 {[%clk 0:00:42]} 24. Nd2 {[%clk 0:00:18]}  e4 {[%clk 0:00:41]} 25. Be2 {[%clk 0:00:18]}  Nb4 {[%clk 0:00:40]} 26. Nxb4 {[%clk 0:00:17]}  Qxb4 {[%clk 0:00:41]} 27. Bxa7 {[%clk 0:00:12]}  Nd7 {[%clk 0:00:39]} 28. Rc1 {[%clk 0:00:07]}  Qxa5 {[%clk 0:00:38]} 29. Be3 {[%clk 0:00:03]}  Ra8 {[%clk 0:00:38]} 30. Qb3 {[%clk 0:00:02]}  d4 {[%clk 0:00:33]} 31. Bg5 {[%clk 0:00:02]}  d3 {[%clk 0:00:29]} 32. Bxd3 {[%clk 0:00:01]}  exd3 {[%clk 0:00:28]} 33. Be7 {[%clk 0:00:01]}  Qa1# {[%clk 0:00:27]} 0-1


[Site "https://www.chess.com"]